[Event "Romanian-ch Open 2022"]
[Site "Eforie Nord"]
[Date "2022.02.25"]
[Round "7.15"]
[White "Daianu, Cristian-Clement"]
[Black "Bonte, Andrei-Mihai"]
[Result "0-1"]
[ECO "C10"]
[WhiteElo "2171"]
[BlackElo "2349"]
[Annotator "ChessBase"]
[PlyCount "94"]
[EventDate "2022.02.20"]
[EventType "swiss"]
[EventCountry "ROU"]
[SourceTitle "playchess.com"]
[Source "ChessBase"]
[SourceQuality "1"]
[TimeControl "40/5400+30:900+30"]

1. e4 {[%emt 0:01:55]} e6 {[%emt 0:01:10]} 2. d4 {[%emt 0:00:36]} d5 {[%emt 0:00:09]} 3. Nd2 {[%emt 0:01:54]} dxe4 {[%emt 0:01:31]} 4. Nxe4 {[%emt 0:00:48]} Nd7 {[%emt 0:00:06]} 5. g3 {[%emt 0:06:57]} b6 {[%emt 0:03:09]} 6. Bg2 {[%emt 0:08:40]} Rb8 {[%emt 0:00:32]} 7. Nf3 {[%emt 0:03:55]} Bb7 {[%emt 0:10:49]} 8. Qe2 {[%emt 0:01:13]} Ngf6 {[%emt 0:01:30]} 9. Ne5 {[%emt 0:04:59]} Nxe5 {[%emt 0:08:38]} 10. dxe5 {[%emt 0:04:24]} Nxe4 {[%emt 0:00:13]} 11. Bxe4 {[%emt 0:00:05]} Bxe4 {[%emt 0:00:03]} 12. Qxe4 {[%emt 0:00:13]} Qd5 {[%emt 0:00:06]} 13. Qxd5 {[%emt 0:00:50]} exd5 {[%emt 0:00:03]} 14. Bf4 {[%emt 0:05:32]} Kd7 {[%emt 0:05:53]} 15. O-O-O {[%emt 0:07:41]} Ke6 {[%emt 0:00:39]} 16. Bd2 {[%emt 0:09:44]} Be7 {[%emt 0:02:13]} 17. f4 {[%emt 0:07:43]} h5 {[%emt 0:00:07]} 18. Rhf1 {[%emt 0:00:20]} g6 {[%emt 0:03:25]} 19. Rf3 {[%emt 0:03:44]} c5 {[%emt 0:02:13]} 20. h3 {[%emt 0:08:21]} Rbg8 {[%emt 0:03:17]} 21. g4 {[%emt 0:01:44]} hxg4 {[%emt 0:00:07]} 22. hxg4 {[%emt 0:00:02]} Rh4 {[%emt 0:00:37]} 23. Rg1 {[%emt 0:07:43]} Rgh8 {[%emt 0:05:24]} 24. Rff1 {[%emt 0:07:03]} Bd8 {[%emt 0:08:18]} 25. Be1 {[%emt 0:00:43]} Rh3 {[%emt 0:00:53]} 26. Bg3 {[%emt 0:02:50]} d4 {[%emt 0:02:10]} 27. c4 {[%emt 0:00:52]} dxc3 {[%emt 0:07:54]} 28. bxc3 {[%emt 0:00:11]} Bc7 {[%emt 0:00:42]} 29. Kc2 {[%emt 0:00:48]} Rd8 {[%emt 0:02:58]} 30. f5+ {[%emt 0:01:46]} Ke7 {[%emt 0:05:32]} 31. Rf3 {[%emt 0:01:31]} c4 {[%emt 0:07:56]} 32. Re1 {[%emt 0:01:07]} b5 {[%emt 0:14:02]} 33. fxg6 {[%emt 0:00:12]} fxg6 {[%emt 0:00:07]} 34. Ref1 {[%emt 0:00:06]} Rd3 {[%emt 0:02:46]} 35. Rf7+ {[%emt 0:00:07]} Ke6 {[%emt 0:00:31]} 36. R1f6+ {[%emt 0:01:13]} Kd5 {[%emt 0:00:05]} 37. Rd7+ {[%emt 0:00:41]} Ke4 {[%emt 0:00:11]} 38. Rf4+ {[%emt 0:00:24]} Ke3 {[%emt 0:01:20]} 39. Rfd4 {[%emt 0:00:48]} Rxg3 {[%emt 0:01:08]} 40. Rxc7 {[%emt 0:00:00]} Rg2+ {[%emt 0:00:00]} 41. Kb1 {[%emt 0:01:18]} Rxd4 {[%emt 0:02:51]} 42. cxd4 {[%emt 0:02:12]} Kxd4 {[%emt 0:01:32]} 43. Rxa7 {[%emt 0:00:14]} Kc3 {[%emt 0:06:57]} 44. Ra3+ {[%emt 0:02:33]} Kd2 {[%emt 0:00:10]} 45. Kb2 {[%emt 0:00:08]} b4 {[%emt 0:01:53]} 46. Ra7 {[%emt 0:01:40]} Kd3+ {[%emt 0:00:07]} 47. Kb1 {[%emt 0:00:08]} Kc3 {[%emt 0:00:13]} 0-1

[Event "Romanian-ch Open 2022"]
[Site "Eforie Nord"]
[Date "2022.02.25"]
[Round "7.16"]
[White "Doncea, Vladimir"]
[Black "Sachilaru, Alexandru"]
[Result "1/2-1/2"]
[ECO "E17"]
[WhiteElo "2367"]
[BlackElo "2085"]
[Annotator "NA"]
[PlyCount "68"]
[EventDate "2022.02.20"]
[EventType "swiss"]
[EventCountry "ROU"]
[SourceTitle "playchess.com"]
[Source "ChessBase"]
[SourceQuality "1"]
[TimeControl "40/5400+30:900+30"]

1. d4 {[%emt 0:00:05]} Nf6 {[%emt 0:00:22]} 2. c4 {[%emt 0:00:06]} e6 {[%emt 0:00:27]} 3. Nf3 {[%emt 0:00:31]} b6 {[%emt 0:00:39]} 4. g3 {[%emt 0:00:09]} Bb7 {[%emt 0:00:18]} 5. Bg2 {[%emt 0:00:08]} Be7 {[%emt 0:00:44]} 6. O-O {[%emt 0:00:08]} O-O {[%emt 0:00:07]} 7. Re1 {[%emt 0:00:10]} d5 {[%emt 0:04:17]} 8. Ne5 {[%emt 0:01:31]} Nbd7 {[%emt 0:02:38]} 9. Bf4 {[%emt 0:03:34]} c5 {[%emt 1:25:28]} 10. Nc3 {[%emt 0:00:50]} cxd4 {[%emt 0:00:00]} 11. Qxd4 {[%emt 0:03:20]} Bc5 {[%emt 0:00:00]} 12. Qd2 {[%emt 0:05:15]} Nxe5 {[%emt 0:00:00]} 13. Bxe5 {[%emt 0:00:06]} Bxf2+ {[%emt 0:00:00]} 14. Kxf2 {[%emt 0:00:06]} Ng4+ {[%emt 0:00:00]} 15. Kg1 {[%emt 0:00:07]} Nxe5 {[%emt 0:00:00]} 16. cxd5 {[%emt 0:00:06]} exd5 {[%emt 0:00:00]} 17. Nxd5 {[%emt 0:00:31]} Rc8 {[%emt 0:00:00]} 18. Rad1 {[%emt 0:00:12]} Bxd5 {[%emt 0:00:00]} 19. Qxd5 {[%emt 0:02:54]} Qg5 {[%emt 0:00:00]} 20. Qd2 {[%emt 0:00:43]} Qe7 {[%emt 0:00:00]} 21. b3 {[%emt 0:01:24]} Qc5+ {[%emt 0:00:00]} 22. Qd4 {[%emt 0:04:28]} Qxd4+ {[%emt 0:00:00]} 23. Rxd4 {[%emt 0:00:07]} Rc2 {[%emt 0:00:00]} 24. a4 {[%emt 0:01:30]} Rb2 {[%emt 0:00:00]} 25. Re4 {[%emt 0:03:40]} f6 {[%emt 0:00:00]} 26. Rc1 {[%emt 0:00:12]} Rd8 {[%emt 0:00:00]} 27. Bh3 {[%emt 0:05:00]} Kf8 {[%emt 0:00:00]} 28. Rc7 {[%emt 0:00:52]} a5 {[%emt 0:00:00]} 29. Be6 {[%emt 0:03:08]} Nf3+ {[%emt 0:00:47]} 30. Kf2 {[%emt 0:00:10]} Ng5 {[%emt 0:00:56]} 31. Re3 {[%emt 0:00:12]} Re8 {[%emt 0:01:07]} 32. Bd5 {[%emt 0:11:21]} Nh3+ {[%emt 0:00:16]} 33. Kf3 {[%emt 0:00:09]} Ng1+ {[%emt 0:00:31]} 34. Kf2 {[%emt 0:00:25]} Nh3+ {[%emt 0:00:05]} 1/2-1/2

[Event "Romanian-ch Open 2022"]
[Site "Eforie Nord"]
[Date "2022.02.25"]
[Round "7.17"]
[White "Popescu, Daniel-Vasilica"]
[Black "Stepanencu, Nicodim-Cosmin"]
[Result "1-0"]
[ECO "B70"]
[WhiteElo "2064"]
[BlackElo "2334"]
[Annotator "ChessBase"]
[PlyCount "71"]
[EventDate "2022.02.20"]
[EventType "swiss"]
[EventCountry "ROU"]
[SourceTitle "playchess.com"]
[Source "ChessBase"]
[SourceQuality "1"]
[TimeControl "40/5400+30:900+30"]

1. e4 {[%emt 0:01:28]} c5 {[%emt 0:00:05]} 2. Nf3 {[%emt 0:00:16]} d6 {[%emt 0:00:05]} 3. d4 {[%emt 0:00:10]} cxd4 {[%emt 0:00:05]} 4. Nxd4 {[%emt 0:00:08]} Nf6 {[%emt 0:00:04]} 5. Nc3 {[%emt 0:00:06]} a6 {[%emt 0:00:03]} 6. Be2 {[%emt 0:00:44]} g6 {[%emt 0:00:08]} 7. Be3 {[%emt 0:00:19]} Bg7 {[%emt 0:04:50]} 8. g4 {[%emt 0:03:17]} h5 {[%emt 0:04:10]} 9. gxh5 {[%emt 0:06:22]} Nxh5 {[%emt 0:00:29]} 10. Qd2 {[%emt 0:00:11]} Nf6 {[%emt 0:05:15]} 11. O-O-O {[%emt 0:11:49]} Bd7 {[%emt 0:14:47]} 12. f4 {[%emt 0:13:57]} Nc6 {[%emt 0:01:10]} 13. f5 {[%emt 0:07:10]} Ne5 {[%emt 0:24:52]} 14. fxg6 {[%emt 0:01:16]} fxg6 {[%emt 0:00:04]} 15. Rdf1 {[%emt 0:09:20]} Bh3 {[%emt 0:12:23]} 16. Rfg1 {[%emt 0:13:57]} Rc8 {[%emt 0:04:19]} 17. Rg3 {[%emt 0:11:04]} Qd7 {[%emt 0:12:09]} 18. Rhg1 {[%emt 0:00:21]} Rxc3 {[%emt 0:01:02]} 19. Qxc3 {[%emt 0:02:23]} Nxe4 {[%emt 0:00:06]} 20. Qb3 {[%emt 0:00:37]} Nxg3 {[%emt 0:00:07]} 21. Rxg3 {[%emt 0:00:26]} d5 {[%emt 0:04:53]} 22. Qb6 {[%emt 0:00:56]} Bf6 {[%emt 0:04:37]} 23. Bg5 {[%emt 0:05:59]} Rf8 {[%emt 0:00:02]} 24. Bh6 {[%emt 0:01:29]} Rf7 {[%emt 0:00:01]} 25. Bxa6 {[%emt 0:06:21]} bxa6 {[%emt 0:00:32]} 26. Rxh3 {[%emt 0:00:05]} Rh7 {[%emt 0:02:13]} 27. Ne6 {[%emt 0:01:34]} Nc6 {[%emt 0:01:13]} 28. Qe3 {[%emt 0:01:00]} d4 {[%emt 0:00:22]} 29. Qe4 {[%emt 0:00:40]} Kf7 {[%emt 0:00:21]} 30. Nf8 {[%emt 0:00:51]} Bg5+ {[%emt 0:04:15]} 31. Kd1 {[%emt 0:00:05]} Rxh6 {[%emt 0:01:18]} 32. Nxd7 {[%emt 0:00:10]} Rxh3 {[%emt 0:00:00]} 33. Qxc6 {[%emt 0:00:10]} Bf4 {[%emt 0:00:00]} 34. Qd5+ {[%emt 0:00:29]} Ke8 {[%emt 0:00:20]} 35. Nf6+ {[%emt 0:00:18]} Kf8 {[%emt 0:00:18]} 36. Qg8# {[%emt 0:03:02]} 1-0

[Event "Romanian-ch Open 2022"]
[Site "Eforie Nord"]
[Date "2022.02.25"]
[Round "7.18"]
[White "Patrascu, Catalin-Lucian"]
[Black "Veress, Armand"]
[Result "0-1"]
[ECO "B35"]
[WhiteElo "2310"]
[BlackElo "2034"]
[Annotator "NA"]
[PlyCount "56"]
[EventDate "2022.02.20"]
[EventType "swiss"]
[EventCountry "ROU"]
[SourceTitle "playchess.com"]
[Source "ChessBase"]
[SourceQuality "1"]
[TimeControl "40/5400+30:900+30"]

1. e4 {[%emt 0:00:02]} c5 {[%emt 0:00:06]} 2. Nf3 {[%emt 0:00:05]} Nc6 {[%emt 0:00:06]} 3. d4 {[%emt 0:00:07]} cxd4 {[%emt 0:00:06]} 4. Nxd4 {[%emt 0:00:03]} g6 {[%emt 0:00:14]} 5. Nc3 {[%emt 0:00:04]} Bg7 {[%emt 0:00:12]} 6. Be3 {[%emt 0:00:51]} Nf6 {[%emt 0:00:16]} 7. Bc4 {[%emt 0:00:22]} O-O {[%emt 0:00:38]} 8. Bb3 {[%emt 0:00:33]} a6 {[%emt 0:00:32]} 9. Nxc6 {[%emt 0:09:50]} bxc6 {[%emt 0:01:35]} 10. e5 {[%emt 0:04:18]} Ne8 {[%emt 0:00:13]} 11. f4 {[%emt 0:01:17]} d6 {[%emt 0:02:06]} 12. Ne4 {[%emt 0:17:08]} Qc7 {[%emt 0:12:24]} 13. Qf3 {[%emt 0:13:36]} dxe5 {[%emt 0:17:33]} 14. O-O-O {[%emt 0:00:56]} Nf6 {[%emt 0:04:32]} 15. Nxf6+ {[%emt 0:08:34]} Bxf6 {[%emt 0:04:40]} 16. g4 {[%emt 0:11:21]} e4 {[%emt 0:19:42]} 17. Qg2 {[%emt 0:03:36]} a5 {[%emt 0:01:36]} 18. a4 {[%emt 0:05:07]} Rb8 {[%emt 0:05:14]} 19. Rd2 {[%emt 0:07:54]} c5 {[%emt 0:02:02]} 20. Rd5 {[%emt 0:03:27]} Bd4 {[%emt 0:11:28]} 21. Qd2 {[%emt 0:02:04]} Be6 {[%emt 0:01:38]} 22. Bxd4 {[%emt 0:01:49]} cxd4 {[%emt 0:00:50]} 23. Qxa5 {[%emt 0:01:33]} Qxf4+ {[%emt 0:00:11]} 24. Kb1 {[%emt 0:01:20]} Bxd5 {[%emt 0:00:20]} 25. Qxd5 {[%emt 0:01:02]} Rfd8 {[%emt 0:00:30]} 26. Qc4 {[%emt 0:00:27]} d3 {[%emt 0:01:04]} 27. cxd3 {[%emt 0:00:21]} Qf3 {[%emt 0:02:49]} 28. Ka2 {[%emt 0:03:55]} Rxb3 {[%emt 0:01:01]} 0-1

[Event "Romanian-ch Open 2022"]
[Site "Eforie Nord"]
[Date "2022.02.25"]
[Round "7.19"]
[White "Magold, Filip"]
[Black "Mintau, Andrei-Catalin"]
[Result "1-0"]
[ECO "B76"]
[WhiteElo "2204"]
[BlackElo "2029"]
[Annotator "NA"]
[PlyCount "79"]
[EventDate "2022.02.20"]
[EventType "swiss"]
[EventCountry "ROU"]
[SourceTitle "playchess.com"]
[Source "ChessBase"]
[SourceQuality "1"]
[TimeControl "40/5400+30:900+30"]

1. e4 {[%emt 0:00:04]} c5 {[%emt 0:00:07]} 2. Nf3 {[%emt 0:00:05]} g6 {[%emt 0:00:06]} 3. d4 {[%emt 0:00:03]} Bg7 {[%emt 0:00:03]} 4. Nc3 {[%emt 0:00:08]} Qa5 {[%emt 0:00:13]} 5. a3 {[%emt 0:10:04]} Nf6 {[%emt 0:27:57]} 6. Bd3 {[%emt 0:03:15]} Nc6 {[%emt 0:10:34]} 7. d5 {[%emt 0:01:40]} Nd4 {[%emt 0:06:46]} 8. Nxd4 {[%emt 0:12:59]} cxd4 {[%emt 0:00:10]} 9. b4 {[%emt 0:00:02]} Qd8 {[%emt 0:00:40]} 10. Nb5 {[%emt 0:01:41]} a6 {[%emt 0:00:42]} 11. Nxd4 {[%emt 0:01:03]} Nxd5 {[%emt 0:00:09]} 12. Bb2 {[%emt 0:01:37]} Qb6 {[%emt 0:01:11]} 13. exd5 {[%emt 0:14:10]} Bxd4 {[%emt 0:00:06]} 14. Bxd4 {[%emt 0:00:05]} Qxd4 {[%emt 0:00:04]} 15. O-O {[%emt 0:05:11]} Qxd5 {[%emt 0:01:59]} 16. Re1 {[%emt 0:00:35]} e6 {[%emt 0:00:08]} 17. c4 {[%emt 0:00:34]} Qd4 {[%emt 0:01:05]} 18. c5 {[%emt 0:00:48]} a5 {[%emt 0:17:55]} 19. Rxe6+ {[%emt 0:00:50]} Kf8 {[%emt 0:03:39]} 20. Rd6 {[%emt 0:01:39]} Qc3 {[%emt 0:00:29]} 21. Rc1 {[%emt 0:00:56]} Qxa3 {[%emt 0:00:32]} 22. Bc4 {[%emt 0:02:01]} Qb2 {[%emt 0:07:20]} 23. Rc2 {[%emt 0:07:40]} Qe5 {[%emt 0:00:14]} 24. Re2 {[%emt 0:02:21]} Qc3 {[%emt 0:00:07]} 25. Rd3 {[%emt 0:06:26]} Qxc4 {[%emt 0:04:03]} 26. Qa1 {[%emt 0:00:08]} Rg8 {[%emt 0:00:10]} 27. Rde3 {[%emt 0:00:01]} Qe6 {[%emt 0:00:24]} 28. Rxe6 {[%emt 0:00:02]} fxe6 {[%emt 0:00:02]} 29. Qa4 {[%emt 0:01:05]} Ke7 {[%emt 0:00:47]} 30. b5 {[%emt 0:00:06]} g5 {[%emt 0:00:37]} 31. b6 {[%emt 0:00:16]} Rf8 {[%emt 0:00:24]} 32. g3 {[%emt 0:08:11]} Rf5 {[%emt 0:00:44]} 33. Rc2 {[%emt 0:00:22]} Kf7 {[%emt 0:01:28]} 34. f4 {[%emt 0:00:28]} g4 {[%emt 0:00:31]} 35. h3 {[%emt 0:00:34]} gxh3 {[%emt 0:00:31]} 36. g4 {[%emt 0:00:33]} Rd5 {[%emt 0:00:13]} 37. Kh2 {[%emt 0:00:49]} Kf8 {[%emt 0:02:25]} 38. Kxh3 {[%emt 0:00:13]} d6 {[%emt 0:00:13]} 39. cxd6 {[%emt 0:00:24]} Rxd6 {[%emt 0:00:09]} 40. Qa3 {[%emt 0:00:00]} 1-0

[Event "Romanian-ch Open 2022"]
[Site "Eforie Nord"]
[Date "2022.02.25"]
[Round "7.20"]
[White "Antal, Hunor-Zoltan"]
[Black "Radu, David Cr."]
[Result "1/2-1/2"]
[ECO "D32"]
[WhiteElo "2172"]
[BlackElo "1960"]
[Annotator "ChessBase"]
[PlyCount "76"]
[EventDate "2022.02.20"]
[EventType "swiss"]
[EventCountry "ROU"]
[SourceTitle "playchess.com"]
[Source "ChessBase"]
[SourceQuality "1"]
[TimeControl "40/5400+30:900+30"]

1. c4 {[%emt 0:00:09]} e6 {[%emt 0:01:03]} 2. Nc3 {[%emt 0:00:17]} d5 {[%emt 0:00:50]} 3. e3 {[%emt 0:07:47]} Nf6 {[%emt 0:05:28]} 4. Nf3 {[%emt 0:00:51]} c5 {[%emt 0:02:36]} 5. cxd5 {[%emt 0:01:33]} exd5 {[%emt 0:00:13]} 6. d4 {[%emt 0:00:16]} Nc6 {[%emt 0:02:06]} 7. Be2 {[%emt 0:02:23]} cxd4 {[%emt 0:06:45]} 8. Nxd4 {[%emt 0:00:16]} Bd6 {[%emt 0:00:07]} 9. Bf3 {[%emt 0:00:59]} a6 {[%emt 0:13:27]} 10. Nxc6 {[%emt 0:08:26]} bxc6 {[%emt 0:00:10]} 11. O-O {[%emt 0:00:13]} O-O {[%emt 0:10:20]} 12. b3 {[%emt 0:01:06]} Qe7 {[%emt 0:00:48]} 13. Bb2 {[%emt 0:06:53]} h5 {[%emt 0:02:20]} 14. Ne2 {[%emt 0:06:24]} Bg4 {[%emt 0:11:42]} 15. Ng3 {[%emt 0:06:28]} Bxf3 {[%emt 0:00:40]} 16. Qxf3 {[%emt 0:00:08]} Be5 {[%emt 0:00:04]} 17. Bxe5 {[%emt 0:15:32]} Qxe5 {[%emt 0:00:08]} 18. Rac1 {[%emt 0:00:05]} Rfc8 {[%emt 0:00:44]} 19. Rc2 {[%emt 0:02:31]} a5 {[%emt 0:04:37]} 20. Rfc1 {[%emt 0:01:41]} a4 {[%emt 0:02:11]} 21. b4 {[%emt 0:01:38]} a3 {[%emt 0:00:43]} 22. Qf5 {[%emt 0:00:27]} Qd6 {[%emt 0:05:41]} 23. Qg5 {[%emt 0:19:05]} Rab8 {[%emt 0:14:28]} 24. Nf5 {[%emt 0:04:42]} Qf8 {[%emt 0:00:10]} 25. Nd4 {[%emt 0:01:16]} c5 {[%emt 0:02:56]} 26. bxc5 {[%emt 0:04:14]} Rxc5 {[%emt 0:00:08]} 27. h3 {[%emt 0:01:09]} Rxc2 {[%emt 0:06:23]} 28. Rxc2 {[%emt 0:00:01]} Rb1+ {[%emt 0:03:42]} 29. Kh2 {[%emt 0:00:05]} Rb2 {[%emt 0:00:29]} 30. Rc6 {[%emt 0:06:55]} Rxf2 {[%emt 0:02:03]} 31. Nf5 {[%emt 0:01:37]} Qb8+ {[%emt 0:00:13]} 32. Nd6 {[%emt 0:00:35]} Qb2 {[%emt 0:01:38]} 33. Rc8+ {[%emt 0:00:29]} Kh7 {[%emt 0:00:11]} 34. Qg3 {[%emt 0:00:44]} Ne4 {[%emt 0:01:05]} 35. Nxe4 {[%emt 0:00:01]} dxe4 {[%emt 0:00:01]} 36. Qg5 {[%emt 0:01:00]} g6 {[%emt 0:00:12]} 37. Re8 {[%emt 0:00:32]} Rf5 {[%emt 0:02:02]} 38. Qd8 {[%emt 0:00:18]} Rf2 {[%emt 0:00:28]} 1/2-1/2

[Event "Romanian-ch Open 2022"]
[Site "Eforie Nord"]
[Date "2022.02.25"]
[Round "7.21"]
[White "Sarighioleanu, Sebastian-Laure"]
[Black "Cnejev, Vladimir-Alexandru"]
[Result "0-1"]
[ECO "D58"]
[WhiteElo "2045"]
[BlackElo "2179"]
[Annotator "ChessBase"]
[PlyCount "90"]
[EventDate "2022.02.20"]
[EventType "swiss"]
[EventCountry "ROU"]
[SourceTitle "playchess.com"]
[Source "ChessBase"]
[SourceQuality "1"]
[TimeControl "40/5400+30:900+30"]

1. d4 {[%emt 0:00:18]} d5 {[%emt 0:00:03]} 2. c4 {[%emt 0:00:13]} e6 {[%emt 0:00:03]} 3. Nc3 {[%emt 0:00:42]} Nf6 {[%emt 0:00:05]} 4. Bg5 {[%emt 0:00:31]} Be7 {[%emt 0:00:05]} 5. e3 {[%emt 0:00:49]} h6 {[%emt 0:00:04]} 6. Bh4 {[%emt 0:00:11]} O-O {[%emt 0:00:03]} 7. Nf3 {[%emt 0:00:34]} b6 {[%emt 0:00:08]} 8. Qc2 {[%emt 0:01:17]} Bb7 {[%emt 0:00:16]} 9. Bxf6 {[%emt 0:00:34]} Bxf6 {[%emt 0:00:01]} 10. cxd5 {[%emt 0:00:15]} exd5 {[%emt 0:00:01]} 11. h4 {[%emt 0:01:06]} g6 {[%emt 0:01:49]} 12. g4 {[%emt 0:02:56]} Bg7 {[%emt 0:00:04]} 13. O-O-O {[%emt 0:05:45]} Nd7 {[%emt 0:08:14]} 14. h5 {[%emt 0:24:59]} g5 {[%emt 0:02:15]} 15. Bg2 {[%emt 0:11:32]} Re8 {[%emt 0:08:37]} 16. Kb1 {[%emt 0:02:09]} Nf8 {[%emt 0:05:38]} 17. Ng1 {[%emt 0:08:45]} c6 {[%emt 0:28:33]} 18. Nge2 {[%emt 0:02:14]} Bc8 {[%emt 0:00:12]} 19. Bh3 {[%emt 0:01:58]} Bd7 {[%emt 0:05:08]} 20. Ng3 {[%emt 0:05:45]} Qc8 {[%emt 0:00:34]} 21. Nf5 {[%emt 0:00:49]} Bxf5 {[%emt 0:01:06]} 22. gxf5 {[%emt 0:00:02]} Qd8 {[%emt 0:07:43]} 23. Ne2 {[%emt 0:06:19]} Qd6 {[%emt 0:04:44]} 24. Rc1 {[%emt 0:02:54]} c5 {[%emt 0:01:36]} 25. dxc5 {[%emt 0:03:45]} bxc5 {[%emt 0:01:03]} 26. Qxc5 {[%emt 0:01:02]} Qe5 {[%emt 0:07:58]} 27. Nc3 {[%emt 0:03:04]} Rac8 {[%emt 0:08:19]} 28. Qa5 {[%emt 0:07:24]} Rc4 {[%emt 0:07:24]} 29. Rc2 {[%emt 0:04:16]} Rb8 {[%emt 0:01:43]} 30. Rhc1 {[%emt 0:01:16]} Qh2 {[%emt 0:01:24]} 31. f6 {[%emt 0:02:03]} Bxf6 {[%emt 0:00:18]} 32. Bf5 {[%emt 0:00:29]} Bxc3 {[%emt 0:00:16]} 33. Qxd5 {[%emt 0:00:30]} Bxb2 {[%emt 0:00:54]} 34. Rxc4 {[%emt 0:00:29]} Ba3+ {[%emt 0:00:32]} 35. Kc2 {[%emt 0:00:23]} Qxf2+ {[%emt 0:00:16]} 36. Kd3 {[%emt 0:00:18]} Bxc1 {[%emt 0:00:32]} 37. Rxc1 {[%emt 0:00:01]} Rb2 {[%emt 0:00:42]} 38. Ke4 {[%emt 0:01:14]} Qg2+ {[%emt 0:00:31]} 39. Ke5 {[%emt 0:00:08]} Qg3+ {[%emt 0:00:16]} 40. Ke4 {[%emt 0:00:00]} Qg2+ {[%emt 0:00:00]} 41. Ke5 {[%emt 0:01:04]} Qe2 {[%emt 0:14:29]} 42. Kf6 {[%emt 0:14:48]} Rb6+ {[%emt 0:00:17]} 43. Rc6 {[%emt 0:00:49]} Rxc6+ {[%emt 0:00:06]} 44. Qxc6 {[%emt 0:00:01]} Qb2+ {[%emt 0:00:07]} 45. Ke7 {[%emt 0:00:15]} Qe5+ {[%emt 0:00:01]} 0-1

[Event "Romanian-ch Open 2022"]
[Site "Eforie Nord"]
[Date "2022.02.25"]
[Round "7.22"]
[White "Zaim, Marian"]
[Black "Andronescu, Madalin"]
[Result "1/2-1/2"]
[ECO "A49"]
[WhiteElo "1964"]
[BlackElo "2122"]
[Annotator "ChessBase"]
[PlyCount "113"]
[EventDate "2022.02.20"]
[EventType "swiss"]
[EventCountry "ROU"]
[SourceTitle "playchess.com"]
[Source "ChessBase"]
[SourceQuality "1"]
[TimeControl "40/5400+30:900+30"]

1. Nf3 {[%emt 0:00:02]} Nf6 {[%emt 0:00:07]} 2. g3 {[%emt 0:00:12]} g6 {[%emt 0:00:07]} 3. Bg2 {[%emt 0:00:09]} Bg7 {[%emt 0:00:06]} 4. O-O {[%emt 0:00:18]} O-O {[%emt 0:00:09]} 5. d4 {[%emt 0:00:36]} d6 {[%emt 0:00:06]} 6. b3 {[%emt 0:05:40]} c6 {[%emt 0:00:27]} 7. Bb2 {[%emt 0:00:23]} Nbd7 {[%emt 0:00:19]} 8. Nbd2 {[%emt 0:03:31]} d5 {[%emt 0:06:15]} 9. c4 {[%emt 0:04:09]} Re8 {[%emt 0:00:40]} 10. Qc2 {[%emt 0:02:16]} Qa5 {[%emt 0:27:39]} 11. Rfe1 {[%emt 0:13:02]} Nf8 {[%emt 0:06:18]} 12. Bc3 {[%emt 0:05:34]} Qc7 {[%emt 0:04:08]} 13. Ne5 {[%emt 0:01:12]} Bf5 {[%emt 0:04:01]} 14. Qb2 {[%emt 0:03:33]} Rad8 {[%emt 0:04:32]} 15. Qa3 {[%emt 0:05:03]} Ne6 {[%emt 0:01:44]} 16. e3 {[%emt 0:12:02]} h5 {[%emt 0:05:51]} 17. Rac1 {[%emt 0:02:05]} dxc4 {[%emt 0:11:54]} 18. bxc4 {[%emt 0:06:31]} c5 {[%emt 0:01:10]} 19. d5 {[%emt 0:02:33]} Ng5 {[%emt 0:00:08]} 20. e4 {[%emt 0:12:09]} Nfxe4 {[%emt 0:07:17]} 21. Nxe4 {[%emt 0:00:18]} Nxe4 {[%emt 0:00:06]} 22. Bxe4 {[%emt 0:02:16]} Bxe5 {[%emt 0:00:07]} 23. Bxe5 {[%emt 0:01:11]} Qxe5 {[%emt 0:00:11]} 24. Bxf5 {[%emt 0:00:13]} Qxf5 {[%emt 0:00:07]} 25. Qxa7 {[%emt 0:00:50]} Ra8 {[%emt 0:00:38]} 26. Qxc5 {[%emt 0:00:13]} Rxa2 {[%emt 0:00:08]} 27. Rb1 {[%emt 0:01:56]} Rc8 {[%emt 0:00:26]} 28. Qe3 {[%emt 0:01:25]} Rxc4 {[%emt 0:00:14]} 29. Rf1 {[%emt 0:01:42]} Re4 {[%emt 0:04:40]} 30. Qc5 {[%emt 0:02:25]} h4 {[%emt 0:01:03]} 31. Rxb7 {[%emt 0:00:58]} h3 {[%emt 0:00:11]} 32. Rb8+ {[%emt 0:00:52]} Kg7 {[%emt 0:01:38]} 33. Qc8 {[%emt 0:02:29]} Qxc8 {[%emt 0:00:14]} 34. Rxc8 {[%emt 0:00:01]} Rd4 {[%emt 0:00:09]} 35. Rc7 {[%emt 0:00:54]} Kf6 {[%emt 0:00:19]} 36. Rd7 {[%emt 0:01:30]} Re2 {[%emt 0:01:43]} 37. Rd8 {[%emt 0:00:15]} g5 {[%emt 0:00:48]} 38. Rh8 {[%emt 0:00:33]} g4 {[%emt 0:00:13]} 39. f3 {[%emt 0:00:10]} gxf3 {[%emt 0:01:08]} 40. Rxf3+ {[%emt 0:00:00]} Kg5 {[%emt 0:00:00]} 41. Rf1 {[%emt 0:05:35]} Rxd5 {[%emt 0:07:10]} 42. Rxh3 {[%emt 0:00:10]} f5 {[%emt 0:00:16]} 43. Rf2 {[%emt 0:01:23]} Rdd2 {[%emt 0:02:54]} 44. Rxe2 {[%emt 0:00:53]} Rxe2 {[%emt 0:00:05]} 45. Kf1 {[%emt 0:00:05]} Ra2 {[%emt 0:00:04]} 46. Rh7 {[%emt 0:00:10]} e5 {[%emt 0:00:09]} 47. Rh4 {[%emt 0:01:57]} f4 {[%emt 0:00:26]} 48. Rh8 {[%emt 0:01:20]} f3 {[%emt 0:00:26]} 49. Rf8 {[%emt 0:00:30]} Kg4 {[%emt 0:02:05]} 50. Kg1 {[%emt 0:00:11]} Re2 {[%emt 0:03:39]} 51. Rf7 {[%emt 0:00:17]} e4 {[%emt 0:00:31]} 52. Rf4+ {[%emt 0:00:09]} Kg5 {[%emt 0:00:04]} 53. h4+ {[%emt 0:01:29]} Kg6 {[%emt 0:03:13]} 54. Kf1 {[%emt 0:00:15]} Kh5 {[%emt 0:02:17]} 55. Kg1 {[%emt 0:00:28]} Re1+ {[%emt 0:00:32]} 56. Kf2 {[%emt 0:17:27]} Re2+ {[%emt 0:12:38]} 57. Kf1 1/2-1/2